Cogmind - Beta 15 @@@ ROGUE MODE // 2025.08.02 @ 16:09:24 Player: SpaceExplorer337 Result: Self-destructed Performance ------------- Evolutions (2) 1000 Regions Visited (4) 800 Robots Destroyed (49) 245 Value Destroyed (1008) 1008 Prototype IDs (3) 60 Alien Tech Used (0) 0 Bonus (0) 0 TOTAL SCORE: 3113 Bonus ------- None Cogmind --------- Core Integrity 265/550 Matter 269/300 Energy 100/100 System Corruption 0% Temperature Cool (0) Movement Core (200) Ox3 Location -8/Materials Parts ------- > --- POWER (2) -------- (None) > --- PROPULSION (2) --- (None) > --- UTILITY (3) ------ Medium Storage Unit Advanced Visual Processing Unit > --- WEAPON (4) ------- (None) > --- INVENTORY (10) --- Experimental Sensor Array Medium Laser Peak State ------------ > --- POWER ------------ Ion Engine > --- PROPULSION ------- Aluminum Leg Aluminum Leg > --- UTILITY ---------- Medium Storage Unit Advanced Visual Processing Unit Hacking Suite > --- WEAPON ----------- Advanced Beam Cannon Heavy Assault Rifle Heavy Assault Rifle Autogun > --- INVENTORY -------- Experimental Sensor Array Medium Laser Medium Laser Rocket Launcher [Rating: 20] Favorites ----------- Power Ion Engine Engine Ion Engine Propulsion Aluminum Leg Leg Aluminum Leg Utility Small Storage Unit Device Heat Sink Storage Small Storage Unit Processor Visual Processing Unit Hackware Hacking Suite Weapon Autogun Energy Gun Medium Laser Energy Cannon Advanced Beam Cannon Ballistic Gun Autogun Launcher Rocket Launcher Build | -11 -10 -10 -9 -8 ------- Run | Yrd Mat Min Mat Mat Slots Evolved 4 | . . . 2 2 Power 1 | . . . . 1 Propulsion . | . . . . . Utility 1 | . . . 1 . Weapon 2 | . . . 1 1 Parts Attached 34 | 6 3 . 18 7 Power 3 | 1 . . 1 1 Engine 3 | 1 . . 1 1 Core . | . . . . . Reactor . | . . . . . Propulsion 7 | 1 1 . 5 . Treads . | . . . . . Leg 7 | 1 1 . 5 . Wheel . | . . . . . Hover . | . . . . . Flight . | . . . . . Utility 10 | 2 . . 5 3 Device 5 | 1 . . 4 . Storage 2 | 1 . . . 1 Processor 2 | . . . 1 1 Hackware 1 | . . . . 1 Protection . | . . . . . Artifact . | . . . . . Weapon 14 | 2 2 . 7 3 Energy Gun 2 | . . . 1 1 Energy Cannon 3 | . . . 2 1 Ballistic Gun 8 | 2 2 . 4 . Ballistic Cannon . | . . . . . Launcher 1 | . . . . 1 Special Weapon . | . . . . . Impact Weapon . | . . . . . Slashing Weapon . | . . . . . Piercing Weapon . | . . . . . Special Melee Weapon . | . . . . . Unidentified Prototypes 1 | . . . 1 . Parts Lost 21 | . . . 9 12 Power 3 | . . . 1 2 Propulsion 6 | . . . 4 2 Utility 3 | . . . 2 1 Weapon 9 | . . . 2 7 Highest Loss Streak 12 | . . . 3 12 To Critical Strikes 1 | . . . 1 . Average Backups 5 | 2 4 6 7 3 Power . | . 1 1 . . Propulsion . | . . . . . Utility . | . . . 1 1 Weapon 3 | . 3 5 4 2 Tool/Special . | . . . . . Unused Backups 3 | 1 . . . 2 Power . | . . . . . Propulsion . | . . . . . Utility 1 | . . . . 1 Weapon 2 | 1 . . . 1 Tool/Special . | . . . . . Average Slot Usage (%) 93 | . 100 100 96 69 Engine 11 | . 14 14 11 5 Leg 21 | . 28 28 20 13 Device 13 | . 14 14 16 . Storage 11 | . 14 14 11 9 Processor 3 | . . . 3 8 Energy Cannon 9 | . . . 14 7 Ballistic Gun 21 | . 28 28 18 19 Peak Build Rating 20 | 8 9 10 17 20 Average Rating 11 | 4 9 9 15 15 On Entrance 8 | . 8 9 10 13 Naked Turns . | . . . . . Heaviest Build 28 | 13 15 15 24 28 Greatest Support 20 | 10 20 20 20 20 Greatest Overweight (x) 7 | 1 . . 2 7 Average Overweight (x) . | . . . . 1 Largest Inventory Capacity 10 | 8 8 8 8 10 Average Capacity 8 | 7 8 8 8 9 Most Carried 8 | 5 6 8 8 6 Average Carried 5 | 2 5 6 7 3 Final Capacity 10 | 8 8 8 8 10 Final Carried 7 | 2 6 7 5 2 Class Distribution -------------------- 44% | Mutant 19% | Gunner 19% | Scavenger-Skirmisher 16% | Skirmisher Dominant Class ---------------- Mutant | -10/Materials Mutant | -10/Mines Gunner | -9/Materials Scavenger-Skirmisher | -8/Materials Resources | -11 -10 -10 -9 -8 ----------- Run | Yrd Mat Min Mat Mat Matter Collected 1154 | 324 72 62 550 146 Remotely . | . . . . . Salvage Created 1453 | 178 116 54 830 275 Parts 105 | 10 8 5 63 19 Haulers Intercepted 2 | . 1 . 1 . Recyclers Shooed . | . . . . . Parts Field Recycled . | . . . . . Retrieved Matter . | . . . . . Parts Self-Destructed . | . . . . . Prevented . | . . . . . Kills | -11 -10 -10 -9 -8 ------- Run | Yrd Mat Min Mat Mat Combat Hostiles Destroyed 35 | . 2 3 22 8 Guns 17 | . 2 3 6 6 Cannons 18 | . . . 16 2 Classes Destroyed 12 | 3 2 1 5 1 Worker 1 | 1 . . . . Builder 2 | . . . 1 1 Tunneler 3 | 3 . . . . Hauler 2 | . 1 . 1 . Recycler 1 | 1 . . . . Operator 1 | . . . 1 . Watcher 4 | . . . 4 . Swarmer 18 | . . 3 11 4 Grunt 10 | . 2 . 6 2 Brawler 2 | . . . 1 1 Sentry 4 | . . . 4 . Hunter 1 | . . . . 1 Best Kill Streak 9 | 1 1 4 9 8 Combat Bots Only 7 | . 1 3 5 7 Max Kills in Single Turn 2 | 1 1 2 1 2 Gunslinging 1 | . . 1 . . Exploded . | . . . . . Melee . | . . . . . Uniques/NPCs Destroyed . | . . . . . Combat | -11 -10 -10 -9 -8 -------- Run | Yrd Mat Min Mat Mat Hostile Shots Fired 248 | . 23 10 132 83 Missed 61 | . 8 6 36 11 Hits 187 | . 15 4 96 72 Melee 8 | . . . 2 6 Projectile 179 | . 15 4 94 66 Critical Strikes 5 | . . . 1 4 Damage Taken 2545 | . 162 37 1111 1235 Core 448 | . 10 18 135 285 Absorbed by Shields . | . . . . . Core Remaining (%) 84 | 100 . 88 66 . Volleys Fired 135 | 32 14 4 64 21 Largest 4 | 2 2 2 3 4 Hottest 159 | 40 40 40 159 148 Shots Fired 338 | 64 28 8 179 59 Gun 248 | 64 28 8 106 42 Cannon 88 | . . . 73 15 Launcher 2 | . . . . 2 Special . | . . . . . Kinetic 243 | 64 28 8 106 37 Thermal 93 | . . . 73 20 Explosive 2 | . . . . 2 Electromagnetic . | . . . . . Robot Hit Streak 11 | 8 11 3 9 7 Robot Miss Streak 5 | 3 5 2 5 2 Penetration Max . | . . . . . Secondary Targets 2 | . . 1 . 1 Max Gunslinging Chain 1 | . . 1 . 1 Shots Hit Robots 185 | 45 15 4 85 36 Core Hits 76 | 12 8 3 34 19 Critical Kills . | . . . . . Critical Parts Destroyed . | . . . . . Critical Strikes . | . . . . . Melee Attacks . | . . . . . Impact . | . . . . . Slashing . | . . . . . Piercing . | . . . . . Sneak Attacks . | . . . . . Combat Hostiles . | . . . . . Follow-up Attacks . | . . . . . Damage Inflicted 2952 | 369 182 83 1612 706 Guns 1686 | 369 180 83 694 360 Cannons 1147 | . . . 918 229 Explosions 117 | . . . . 117 Melee . | . . . . . Ramming 2 | . 2 . . . Kinetic 1662 | 369 180 83 694 336 Thermal 1171 | . . . 918 253 Explosive 117 | . . . . 117 Electromagnetic . | . . . . . Impact . | . . . . . Slashing . | . . . . . Piercing . | . . . . . Highest Corruption 3 | . . . 3 . Average Corruption 3 | . . . 3 . Corruption Purged . | . . . . . Corruption Blocked . | . . . . . Effects 4 | . . . 4 . Message Errors 1 | . . . 1 . Matter Fused 1 | . . . 1 . Heat Flow Errors 1 | . . . 1 . Energy Discharges 1 | . . . 1 . Overload Shots . | . . . . . Overflow Damage 1 | . . . 1 . Projectiles 1 | . . . 1 . Explosions . | . . . . . Melee . | . . . . . Knockbacks . | . . . . . Impact . | . . . . . Kinetic . | . . . . . Secondary . | . . . . . Self-Inflicted Damage 73 | . . . . 73 Shots 2 | . . . . 2 Rammed . | . . . . . Targets Rammed 1 | . 1 . . . Kicked 1 | . 1 . . . Crushed . | . . . . . Highest Temperature 420 | . 5 . 420 318 Average Temperature 110 | . 5 . 92 153 Received Heat Transfer 705 | . 90 . 327 288 Effects 4 | . . . 4 . Interference 3 | . . . 3 . Short Circuit 1 | . . . 1 . Siege Activations . | . . . . . Martial Activations . | . . . . . Shielding Activations . | . . . . . Robots Disrupted . | . . . . . Combat Hostiles . | . . . . . Robots Corrupted . | . . . . . Combat Hostiles . | . . . . . Parts Fried . | . . . . . Impact Corruptions . | . . . . . Robots Melted . | . . . . . Combat Hostiles . | . . . . . Parts Melted 4 | . . . 3 1 Heat Transferred 2109 | . . . 1665 444 Parts Sabotaged . | . . . . . Parts Stolen . | . . . . . Parts Stripped . | . . . . . Power Chain Reactions . | . . . . . Alert | -11 -10 -10 -9 -8 ------- Run | Yrd Mat Min Mat Mat Maximum Alert Level 1 | . . . 1 1 Low Security (%) 84 | 100 100 100 66 98 Level 1 15 | . . . 33 1 Level 2 . | . . . . . Level 3 . | . . . . . Level 4 . | . . . . . Level 5 . | . . . . . High Security . | . . . . . Max Security . | . . . . . Peak Influence 371 | 5 36 76 371 207 Initial 141 | . . 6 . 141 Average 79 | . 12 24 128 139 Influence Increases 1030 | 25 73 70 651 211 Destroy 0b10 Robot/C 700 | . 40 60 440 160 Destroy 0b10 Robot/NC 70 | 25 5 . 35 5 Destroy Leader 162 | . 12 10 110 30 Successful Hack 17 | . . . 17 . Disable Machine 30 | . . . 30 . Destroy Structure 21 | . 1 . 4 16 Lose Combat Pursuer 30 | . 15 . 15 . Influence Decreases 888 | 25 56 87 317 403 Entered New Map 204 | . . 11 . 193 Time Decay 474 | 25 56 76 227 90 Lost Part 210 | . . . 90 120 Squads Dispatched 3 | . 2 . 1 . Investigation 1 | . 1 . . . Extermination . | . . . . . Reinforcement 2 | . 1 . 1 . Assault . | . . . . . Garrison . | . . . . . Intercept . | . . . . . Searches Triggered . | . . . . . Construction Impeded . | . . . . . Haulers Reinforced . | . . . . . Active Scanning Responses . | . . . . . Cargo Convoy Interrupts . | . . . . . Stealth | -11 -10 -10 -9 -8 --------- Run | Yrd Mat Min Mat Mat Distress Signals 5 | . 1 . 2 2 Communications Jammed . | . . . . . Distress Signals . | . . . . . Times Spotted 59 | . 9 2 34 14 Peak Tracking Total 7 | . 5 2 7 6 Tactical Retreats 4 | . 1 . 3 . Traps | -11 -10 -10 -9 -8 ------- Run | Yrd Mat Min Mat Mat Traps Triggered 1 | . . . 1 . Indirectly . | . . . . . Trap Hack Attempts . | . . . . . Triggered . | . . . . . Disarmed . | . . . . . Reprogrammed . | . . . . . Reused . | . . . . . Traps Extracted . | . . . . . Installed . | . . . . . Triggered . | . . . . . Machines | -11 -10 -10 -9 -8 ---------- Run | Yrd Mat Min Mat Mat Machines Disabled 2 | . . . 2 . Max in Single Turn 1 | . . . 1 . Machines Repaired . | . . . . . Machines Dismantled . | . . . . . Machines Sabotaged . | . . . . . Overloaded Fab Kills . | . . . . . Hacking | -11 -10 -10 -9 -8 --------- Run | Yrd Mat Min Mat Mat Machines Accessed 6 | . 1 . 4 1 Terminals 6 | . 1 . 4 1 Fabricators . | . . . . . Repair Stations . | . . . . . Recycling Units . | . . . . . Scanalyzers . | . . . . . Garrison Access . | . . . . . Total Hacks 19 | . 2 . 14 3 Successful 10 | . . . 8 2 Failed 9 | . 2 . 6 1 Catastrophic 1 | . 1 . . . Database Lockouts . | . . . . . Manual . | . . . . . Terminals 19 | . 2 . 14 3 Fabricators . | . . . . . Repair Stations . | . . . . . Recycling Units . | . . . . . Scanalyzers . | . . . . . Garrison Access . | . . . . . Terminal Hacks 10 | . . . 8 2 Record 2 | . . . 1 1 Prototype ID Bank 1 | . . . 1 . Alert Level 2 | . . . 1 1 Locate Traps 1 | . . . 1 . Dispatch Records 1 | . . . 1 . Investigation Status 1 | . . . 1 . Zone Layout 2 | . . . 2 . Fabricator Hacks . | . . . . . Repair Station Hacks . | . . . . . Recycling Unit Hacks . | . . . . . Scanalyzer . | . . . . . Garrison Access Hacks . | . . . . . Unauthorized Hacks . | . . . . . Terminals . | . . . . . Fabricators . | . . . . . Repair Stations . | . . . . . Recycling Units . | . . . . . Scanalyzers . | . . . . . Garrison Access . | . . . . . Data Cores Recovered . | . . . . . Used . | . . . . . Hacking Detections 4 | . 1 . 2 1 Full Trace Events 1 | . 1 . . . Feedback Events . | . . . . . Feedback Blocked . | . . . . . Robot Schematics Acquired . | . . . . . Robots Built . | . . . . . Authchips . | . . . . . Time . | . . . . . Total Robot Build Rating . | . . . . . Part Schematics Acquired . | . . . . . Parts Built . | . . . . . Authchips . | . . . . . Time . | . . . . . Total Part Build Rating . | . . . . . Parts Repaired . | . . . . . Time . | . . . . . Parts Recycled . | . . . . . Recycled Matter . | . . . . . Retrieved Matter . | . . . . . Retrieved Components . | . . . . . Parts Scanalyzed . | . . . . . Part Schematics Acquired . | . . . . . Parts Damaged . | . . . . . Bothacking | -11 -10 -10 -9 -8 ------------ Run | Yrd Mat Min Mat Mat Used RIF Installer . | . . . . . Robots Hacked . | . . . . . Non-combat . | . . . . . Combat . | . . . . . Robot Hacks Applied . | . . . . . Relay Couplers Released . | . . . . . Fabnet Peak Effective % . | . . . . . Robots Rewired . | . . . . . Allies Hacked . | . . . . . Hacks Repelled . | . . . . . Allies | -11 -10 -10 -9 -8 -------- Run | Yrd Mat Min Mat Mat Total Allies . | . . . . . Largest Group . | . . . . . Highest-Rated Group . | . . . . . Highest-Rated Ally . | . . . . . Total Orders . | . . . . . Ally Attacks . | . . . . . Total Damage . | . . . . . Kills . | . . . . . Allies Corrupted . | . . . . . Allies Melted . | . . . . . Intel | -11 -10 -10 -9 -8 ------- Run | Yrd Mat Min Mat Mat Active Infowar (turns) 1241 | 20 166 252 621 182 Optics 457 | . . . 275 182 Terrain 693 | 20 166 252 255 . ECM 91 | . . . 91 . Robot Analysis Total . | . . . . . Derelict Logs Recovered 2 | . . 2 . . Drone Launches . | . . . . . Drone Recoveries . | . . . . . Exploration | -11 -10 -10 -9 -8 ------------- Run | Yrd Mat Min Mat Mat Turns Passed 1902 | 392 166 252 901 191 Spaces Moved 833 | 164 88 193 332 56 Core 16 | 12 . . . 4 Treads . | . . . . . Legs 817 | 152 88 193 332 52 Wheels . | . . . . . Hover . | . . . . . Flight . | . . . . . Fastest Speed 50 | 50 120 120 120 120 Average Speed 158 | 180 120 120 174 196 Slowest Speed 400 | 190 120 120 260 400 Overloaded Moves . | . . . . . Propulsion Burnouts . | . . . . . Robots Hopped . | . . . . . Potential Cave-ins . | . . . . . Cave-ins Triggered . | . . . . . Exploration Rate (%) 28 | 12 28 53 36 11 Regions Visited 4 Branch Regions 1 Pre-discovered Areas . | . . . . . Known Exits Taken 2 | . . 1 1 . Unknown Exits Taken 2 | 1 1 . . . Scrap Searched 1 | . . 1 . . Spaces Dug . | . . . . . Terrain Destroyed 14 | . . . . 14 Melee . | . . . . . Projectile . | . . . . . AOE 14 | . . . . 14 Terrain Rammed . | . . . . . Walls Destroyed . | . . . . . Machines Disabled . | . . . . . Actions | -11 -10 -10 -9 -8 --------- Run | Yrd Mat Min Mat Mat Total 1165 | 209 119 206 539 92 Wait 118 | . 9 5 104 . Move 829 | 163 87 192 331 56 Hop . | . . . . . Pick Up 34 | 7 5 3 14 5 Fast Attach 4 | 2 . . 2 . Attach 25 | 4 1 . 13 7 Detach . | . . . . . Swap 6 | . 2 . 3 1 Drop 13 | 1 . 2 8 2 Fire 135 | 32 14 4 64 21 Melee . | . . . . . Ram . | . . . . . Kick 1 | . 1 . . . Crush . | . . . . . Escape Stasis . | . . . . . Rewire . | . . . . . Trap . | . . . . . Miscellaneous . | . . . . . Route ------- -11/Scrapyard -10/Materials -10/Mines (discovered 3 exits: *Mat x2 / [*Exi]) -9/Materials -8/Materials History --------- Turn | Location | Event 34 | -11/Scrapyard | Discovered new exit (range 15) 393 | -11/Scrapyard | Entered Materials 414 | -10/Materials | Build established: Mutant 501 | -10/Materials | Discovered new exit (range 13) 559 | -10/Materials | Entered Mines 587 | -10/Mines | Learned 2 Materials zone layouts 640 | -10/Mines | Deemed a non-threat by the Exiles lab entrance 640 | -10/Mines | Discovered new exit (range 5) 671 | -10/Mines | Received a Rocket Launcher from a helpful Derelict 682 | -10/Mines | Discovered new exit (range 15) 716 | -10/Mines | Identified exit to Materials 761 | -10/Mines | Found a damaged Exp. Sensor Array with a note attached 764 | -10/Mines | Found Prototype Device 811 | -10/Mines | Entered Materials 811 | -9/Materials | Evolved 2 slots: Utility x1, Weapon x1 812 | -9/Materials | Identified exit to Materials 1376 | -9/Materials | Build established: Gunner 1612 | -9/Materials | Lost 3 parts (1n1u1w) 1712 | -9/Materials | Entered another Materials area 1712 | -8/Materials | Evolved 2 slots: Power x1, Weapon x1 1868 | -8/Materials | Destroyed 7 combat bots 1903 | -8/Materials | Core integrity fell below 50% 1903 | -8/Materials | Self-destructed Last Messages --------------- 01875_ K-01 Serf collects debris. 01876_ Penetrated by Slug. 01878_ K-01 Serf collects debris. 01879_ Penetrated by Slug. 01881_ K-01 Serf collects debris. 01881_ Targeting Computer melted. 01881_ H-55 Commando destroyed. 01884_ T-07 Excavator destroyed. 01884_ K-01 Serf suffers critical hit (Burn). 01884_ K-01 Serf destroyed. 01886_ Aluminum Leg destroyed. 01887_ Acquired 81 matter. 01888_ Hvy. Assault Rifle destroyed. 01890_ Med. Laser destroyed. 01890_ Lgt. Ion Engine destroyed. 01890_ Critical hit (Burn: +37). 01895_ Hvy. Particle Cannon destroyed. 01895_ Rocket Launcher destroyed. 01898_ K-01 Serf collects debris. 01903_ U-05 Engineer builds a Door. Map ----- +----------------------------------------------------+ | ????????????????????????####?????????????????????? | | ???????????????????????? ! ???????????????????? | | ???????????????????????? ?????????????????? | | ??????????????????????? []] ???????????????? | | ??????????????????????? []] ?????????????? | | ??????????????????????????# ]]] ???????????? | | ??????????????????????????# ########?? | | ??????????????????????????# + !! #?? | | ??????????????????????????# #??########## ! #?? | | ??????????????????????????# ######### # ! #?? | | ??????????????????????????# # """ ## # #?? | | ??????????????????????????# # "T" ## # #?? | | ??????????????????????????# # ## + = #?? | | ??????????????????????????# # ## ########## | | ??????????????????????????# # ## #??/ | | ???????????????????????##?# # ## ##? """ | | ???????????????#+####### ##k#+##+### # """ | | ??????????????# # ! =%*#= # """ | | ??????????????# """ *=|+= " + | | ??????????????#! """ g#% # """ | | ??????????????# """ = #### # """ | | ??????????????# *g # #??#######? """ | | ??????????????# [ #?????????? | | ??????????#/######+# # # #???????????###### | | ?????? w [[l[ #????????????????? | | ?????? a @ +????????????????? | | ?????? k #????????????????? | | ??????!! #######+######+### #????????????????? | | ???????????????? ?????? ?# #????????????????? | | ??????????????#"??????? ?# #????????????????? | | ?????????????????????? ?# #????????????????? | | ?????????????????????? ?# #????????????????? | | ?????????????????????# / #????????????????? | | ?????????????????????# # #????????????????? | | ?????????????????????##########+#????????????????? | | ?????????????????????????????????????????????????? | | ?????????????????????????????????????????????????? | | ?????????????????????????????????????????????????? | | ?????????????????????????????????????????????????? | | ?????????????????????????????????????????????????? | | ?????????????????????????????????????????????????? | | ?????????????????????????????????????????????????? | | ?????????????????????????????????????????????????? | | ?????????????????????????????????????????????????? | | ?????????????????????????????????????????????????? | | ?????????????????????????????????????????????????? | | ?????????????????????????????????????????????????? | | ?????????????????????????????????????????????????? | | ?????????????????????????????????????????????????? | | ?????????????????????????????????????????????????? | +----------------------------------------------------+ Best States ------------- Heat Dissipation 52 Energy Generation 10 Energy Capacity 250 Matter Stores 300 Matter Capacity 300 Sight Range 20 Terrain Scan Range 16 Terrain Scan Density 10 ECM Strength 1 Evasion (%) 55 Offensive Hacking 10 Item Schematics ----------------- None Robot Schematics ------------------ None Fabricated ------------ Nothing Repaired ---------- Nothing Alien Tech Used ----------------- None Achievements -------------- None Challenges ------------ None Game ------ Seed CompactTripodDesublimator Manual? 0 Play Time 00:19:08 Cumulative 27.7 hours Start 2025.08.02 @ 15:52:40 End 2025.08.02 @ 16:09:24 Sessions 1 Manual Loads 0 Difficulty Rogue Special Mode None Game No. 40 Rogue 40 Adventurer 0 Explorer 0 Win Type - Total 0 Types 0/0/0/0/0/0/0/0/0/0 Lore% 18 Gallery% 24 Achievement% 19 Wizard Run 0 Options --------- Layout 1 ASCII 0 Keyboard 0 Movement Mouse Keybinds 0 Fullscreen 1 Font 24/Smallcaps Map View 50x40 Zoom Use 0% Tactical HUD 1 Map Filters NONE Filters NONE Steam 1 RUN: 81bb8681-fb1a-40a7-a7a8-dba11f0e63b7